[Event "Late-Titled-Tuesday-Blitz-June-25-2024"]
[Site "Chess.com"]
[Date "2024.06.25"]
[Round "2"]
[White "MarcoRiehle"]
[Black "VaglioSagan"]
[Result "1-0"]
[WhiteElo "2814"]
[BlackElo "2557"]
[TimeControl "180+1"]
[EndTime "14:18:13 PDT"]
[Termination "MarcoRiehle won on time"]

1. e4 {[%clk 0:03:00.2]} 1... c6 {[%clk 0:02:59.5]} 2. c4 {[%clk 0:02:59.3]}
2... d5 {[%clk 0:03:00.4]} 3. exd5 {[%clk 0:02:59.8]} 3... cxd5 {[%clk
0:03:01.2]} 4. cxd5 {[%clk 0:03:00.7]} 4... Nf6 {[%clk 0:03:01.9]} 5. Nc3 {[%clk
0:02:58.6]} 5... Nxd5 {[%clk 0:03:02]} 6. Nf3 {[%clk 0:02:58.1]} 6... Nc6 {[%clk
0:03:00.4]} 7. Bb5 {[%clk 0:02:57]} 7... Nb6 {[%clk 0:02:43.1]} 8. O-O {[%clk
0:02:56.3]} 8... e6 {[%clk 0:02:42.8]} 9. d4 {[%clk 0:02:55.7]} 9... Be7 {[%clk
0:02:40.4]} 10. Bf4 {[%clk 0:02:53.8]} 10... O-O {[%clk 0:02:38.1]} 11. Qd2
{[%clk 0:02:51.5]} 11... Nb4 {[%clk 0:02:32.6]} 12. Rad1 {[%clk 0:02:48.5]}
12... N4d5 {[%clk 0:02:28.7]} 13. Bg3 {[%clk 0:02:47.3]} 13... Bd7 {[%clk
0:02:23.1]} 14. Bd3 {[%clk 0:02:44.1]} 14... Rc8 {[%clk 0:02:15.7]} 15. Ne5
{[%clk 0:02:42.4]} 15... Bb4 {[%clk 0:01:48.9]} 16. Rc1 {[%clk 0:02:40.6]} 16...
Be8 {[%clk 0:01:34.1]} 17. h3 {[%clk 0:02:26]} 17... f6 {[%clk 0:01:33.6]} 18.
Nf3 {[%clk 0:02:24.3]} 18... Bf7 {[%clk 0:01:33.8]} 19. Bb1 {[%clk 0:02:14.1]}
19... Nc4 {[%clk 0:01:31.3]} 20. Qe2 {[%clk 0:02:12.1]} 20... Bxc3 {[%clk
0:01:21.2]} 21. bxc3 {[%clk 0:02:11.1]} 21... Re8 {[%clk 0:01:19.6]} 22. Nd2
{[%clk 0:01:57.9]} 22... b5 {[%clk 0:00:55.4]} 23. Nb3 {[%clk 0:01:53.3]} 23...
e5 {[%clk 0:00:39.9]} 24. dxe5 {[%clk 0:01:50]} 24... Nxe5 {[%clk 0:00:31.7]}
25. Qxb5 {[%clk 0:01:41.9]} 25... Nxc3 {[%clk 0:00:30.6]} 26. Qa6 {[%clk
0:01:41.4]} 26... Qb6 {[%clk 0:00:27.9]} 27. Qxb6 {[%clk 0:01:37.1]} 27... axb6
{[%clk 0:00:27.7]} 28. Kh2 {[%clk 0:01:37.7]} 28... Red8 {[%clk 0:00:18.8]} 29.
Bf5 {[%clk 0:01:34]} 29... Rc4 {[%clk 0:00:15.5]} 30. Rc2 {[%clk 0:01:19.8]}
30... Nb5 {[%clk 0:00:11.3]} 31. Rxc4 {[%clk 0:01:15.5]} 31... Bxc4 {[%clk
0:00:11.4]} 32. Rc1 {[%clk 0:01:16.4]} 32... Bxb3 {[%clk 0:00:11.6]} 33. axb3
{[%clk 0:01:17.3]} 33... Nd4 {[%clk 0:00:12.3]} 34. Bb1 {[%clk 0:01:15]} 34...
Kh8 {[%clk 0:00:07.9]} 35. b4 {[%clk 0:01:03]} 35... Ne2 {[%clk 0:00:06.4]} 36.
Rc7 {[%clk 0:01:00.8]} 36... Nxg3 {[%clk 0:00:05.8]} 37. Kxg3 {[%clk 0:01:01.7]}
37... Kg8 {[%clk 0:00:06]} 38. Bf5 {[%clk 0:00:57.6]} 38... g6 {[%clk
0:00:04.1]} 39. Be6+ {[%clk 0:00:57.5]} 39... Kh8 {[%clk 0:00:04.7]} 40. Rb7
{[%clk 0:00:56.3]} 40... Rd6 {[%clk 0:00:03.9]} 41. Ba2 {[%clk 0:00:52.2]} 41...
g5 {[%clk 0:00:04.2]} 42. f4 {[%clk 0:00:43.2]} 42... Rd3+ {[%clk 0:00:03.6]}
43. Kh2 {[%clk 0:00:43.8]} 43... gxf4 {[%clk 0:00:03.7]} 44. Rxb6 {[%clk
0:00:43.6]} 44... Nf3+ {[%clk 0:00:03]} 45. gxf3 {[%clk 0:00:42.8]} 45... Rd2+
{[%clk 0:00:03.6]} 46. Kg1 {[%clk 0:00:43.4]} 46... Rxa2 {[%clk 0:00:04.3]} 47.
Rxf6 {[%clk 0:00:43.6]} 47... Rb2 {[%clk 0:00:03.3]} 48. Rxf4 {[%clk 0:00:43.5]}
48... Kg7 {[%clk 0:00:04.2]} 49. Kf1 {[%clk 0:00:28.2]} 49... Kg6 {[%clk
0:00:03.9]} 50. h4 {[%clk 0:00:28.7]} 50... Kh5 {[%clk 0:00:02.9]} 51. Ke1
{[%clk 0:00:28.9]} 51... Kg6 {[%clk 0:00:02.3]} 52. Kd1 {[%clk 0:00:29.3]} 52...
Kh5 {[%clk 0:00:02.6]} 53. Kc1 {[%clk 0:00:29.7]} 53... Rb3 {[%clk 0:00:03.3]}
54. Kc2 {[%clk 0:00:29.9]} 54... Re3 {[%clk 0:00:03.6]} 55. b5 {[%clk 0:00:29]}
55... Re5 {[%clk 0:00:03.8]} 56. Rb4 {[%clk 0:00:28.4]} 56... Rc5+ {[%clk
0:00:04.4]} 57. Kd3 {[%clk 0:00:28.4]} 57... Rc7 {[%clk 0:00:05.1]} 58. b6
{[%clk 0:00:28.6]} 58... Rb7 {[%clk 0:00:05.7]} 59. Kc3 {[%clk 0:00:28.5]} 59...
h6 {[%clk 0:00:06.2]} 60. Kb3 {[%clk 0:00:28.9]} 60... Kg6 {[%clk 0:00:04.1]}
61. Ka4 {[%clk 0:00:28.6]} 61... Kh5 {[%clk 0:00:04.6]} 62. Kb5 {[%clk 0:00:29]}
62... Rb8 {[%clk 0:00:05.1]} 63. Kc6 {[%clk 0:00:29]} 63... Rc8+ {[%clk
0:00:03.9]} 64. Kd7 {[%clk 0:00:29]} 64... Rb8 {[%clk 0:00:03.8]} 65. Kc7 {[%clk
0:00:29.2]} 65... Rxb6 {[%clk 0:00:02.9]} 66. Kxb6 {[%clk 0:00:29.4]} 1-0

[Event "Late-Titled-Tuesday-Blitz-June-25-2024"]
[Site "Chess.com"]
[Date "2024.06.25"]
[Round "2"]
[White "bubeliang"]
[Black "RodriQA"]
[Result "1/2-1/2"]
[WhiteElo "2785"]
[BlackElo "2494"]
[TimeControl "180+1"]
[EndTime "14:18:17 PDT"]
[Termination "Game drawn by repetition"]

1. e4 {[%clk 0:03:00.9]} 1... c6 {[%clk 0:02:56.9]} 2. d4 {[%clk 0:03:00.4]}
2... d5 {[%clk 0:02:57.3]} 3. Nc3 {[%clk 0:03:00.8]} 3... dxe4 {[%clk
0:02:47.4]} 4. Nxe4 {[%clk 0:03:01.7]} 4... Nf6 {[%clk 0:02:45.8]} 5. Nxf6+
{[%clk 0:03:01.8]} 5... exf6 {[%clk 0:02:46.4]} 6. c3 {[%clk 0:03:01.7]} 6...
Bd6 {[%clk 0:02:46.5]} 7. Bd3 {[%clk 0:03:01.5]} 7... O-O {[%clk 0:02:46.7]} 8.
Qc2 {[%clk 0:03:01.9]} 8... Re8+ {[%clk 0:02:46.8]} 9. Ne2 {[%clk 0:03:02.3]}
9... h5 {[%clk 0:02:47.1]} 10. O-O {[%clk 0:03:02.3]} 10... Nd7 {[%clk
0:02:47.7]} 11. Ng3 {[%clk 0:03:00.8]} 11... h4 {[%clk 0:02:43.1]} 12. Nf5
{[%clk 0:02:59.4]} 12... Nf8 {[%clk 0:02:09.1]} 13. Nxh4 {[%clk 0:02:55.4]}
13... g6 {[%clk 0:02:09.4]} 14. g3 {[%clk 0:02:50.9]} 14... Bh3 {[%clk
0:02:06.2]} 15. Ng2 {[%clk 0:02:48.7]} 15... Bc7 {[%clk 0:02:01.2]} 16. f3
{[%clk 0:02:47.7]} 16... Kg7 {[%clk 0:01:52.3]} 17. Bd2 {[%clk 0:02:46.2]} 17...
Ne6 {[%clk 0:01:52.4]} 18. Rae1 {[%clk 0:02:44.5]} 18... Qd5 {[%clk 0:01:47.6]}
19. b3 {[%clk 0:02:36.8]} 19... Rad8 {[%clk 0:01:22.4]} 20. Re2 {[%clk
0:02:32.3]} 20... Nxd4 {[%clk 0:01:16.1]} 21. cxd4 {[%clk 0:02:17.4]} 21...
Qxd4+ {[%clk 0:01:05.1]} 22. Be3 {[%clk 0:02:17.6]} 22... Qxd3 {[%clk
0:01:00.9]} 23. Qxd3 {[%clk 0:02:17.3]} 23... Rxd3 {[%clk 0:01:01.8]} 24. Bh6+
{[%clk 0:02:17]} 24... Kxh6 {[%clk 0:00:52.1]} 25. Rxe8 {[%clk 0:02:17.9]} 25...
Bb6+ {[%clk 0:00:44.7]} 26. Kh1 {[%clk 0:02:17.7]} 26... Bxg2+ {[%clk
0:00:41.5]} 27. Kxg2 {[%clk 0:02:18.6]} 27... Rd2+ {[%clk 0:00:42.1]} 28. Kh3
{[%clk 0:02:15.9]} 28... Rxa2 {[%clk 0:00:42.1]} 29. Rfe1 {[%clk 0:02:13]} 29...
Rb2 {[%clk 0:00:36.8]} 30. R8e7 {[%clk 0:02:10]} 30... Rxb3 {[%clk 0:00:31.9]}
31. Rxb7 {[%clk 0:02:06.5]} 31... Rxf3 {[%clk 0:00:30.6]} 32. Rxf7 {[%clk
0:02:06.1]} 32... Kg5 {[%clk 0:00:22.1]} 33. Kg2 {[%clk 0:02:02]} 33... Rf2+
{[%clk 0:00:22.1]} 34. Kh3 {[%clk 0:02:01.5]} 34... c5 {[%clk 0:00:20.2]} 35.
Re4 {[%clk 0:01:59.3]} 35... Kf5 {[%clk 0:00:18.2]} 36. Ra4 {[%clk 0:01:49.7]}
36... Ke6 {[%clk 0:00:18.1]} 37. Rg7 {[%clk 0:01:49.4]} 37... g5 {[%clk
0:00:17.5]} 38. g4 {[%clk 0:01:41.6]} 38... Kd5 {[%clk 0:00:15.8]} 39. Rd7+
{[%clk 0:01:40.6]} 39... Kc6 {[%clk 0:00:16.1]} 40. Kg3 {[%clk 0:01:19]} 40...
Rf1 {[%clk 0:00:12.7]} 41. Rf7 {[%clk 0:01:14]} 41... Kb5 {[%clk 0:00:12.1]} 42.
Ra2 {[%clk 0:01:13.5]} 42... c4 {[%clk 0:00:12.3]} 43. Kg2 {[%clk 0:01:13.9]}
43... Rg1+ {[%clk 0:00:12.2]} 44. Kf3 {[%clk 0:01:12.9]} 44... Rf1+ {[%clk
0:00:12.6]} 45. Ke4 {[%clk 0:01:12.3]} 45... Kb4 {[%clk 0:00:11.2]} 46. h4
{[%clk 0:01:04.3]} 46... gxh4 {[%clk 0:00:10.9]} 47. g5 {[%clk 0:01:05.2]} 47...
Re1+ {[%clk 0:00:10.8]} 48. Kd5 {[%clk 0:00:56]} 48... fxg5 {[%clk 0:00:11]} 49.
Rb2+ {[%clk 0:00:56.6]} 49... Kc3 {[%clk 0:00:11.3]} 50. Rb5 {[%clk 0:00:52.8]}
50... Rd1+ {[%clk 0:00:10.7]} 51. Ke4 {[%clk 0:00:51.3]} 51... h3 {[%clk
0:00:07.7]} 52. Rf3+ {[%clk 0:00:47.1]} 52... Rd3 {[%clk 0:00:08.2]} 53. Rxg5
{[%clk 0:00:45.2]} 53... h2 {[%clk 0:00:07.3]} 54. Rh5 {[%clk 0:00:45.6]} 54...
Bg1 {[%clk 0:00:07.6]} 55. Rf1 {[%clk 0:00:42.7]} 55... Kc2 {[%clk 0:00:04.2]}
56. Ra1 {[%clk 0:00:40.2]} 56... Rd2 {[%clk 0:00:03.9]} 57. Ra2+ {[%clk
0:00:37.2]} 57... Kc1 {[%clk 0:00:04.5]} 58. Ra3 {[%clk 0:00:34.8]} 58... Kb2
{[%clk 0:00:03.9]} 59. Rg3 {[%clk 0:00:26.5]} 59... c3 {[%clk 0:00:04.4]} 60.
Rb5+ {[%clk 0:00:27]} 60... Kc2 {[%clk 0:00:04.8]} 61. Rh5 {[%clk 0:00:27.6]}
61... Kb2 {[%clk 0:00:04.1]} 62. Rb5+ {[%clk 0:00:27.4]} 62... Kc1 {[%clk
0:00:04.2]} 63. Rxc3+ {[%clk 0:00:26.8]} 63... Rc2 {[%clk 0:00:04.2]} 64. Rh3
{[%clk 0:00:25.8]} 64... Rc6 {[%clk 0:00:01.5]} 65. Kd3 {[%clk 0:00:21.6]} 65...
Rc2 {[%clk 0:00:02.4]} 66. Rf5 {[%clk 0:00:20.6]} 66... Rd2+ {[%clk 0:00:02.8]}
67. Kc3 {[%clk 0:00:21.3]} 67... Rc2+ {[%clk 0:00:03.2]} 68. Kb3 {[%clk
0:00:22]} 68... Rb2+ {[%clk 0:00:03.8]} 69. Ka3 {[%clk 0:00:22.7]} 69... Rd2
{[%clk 0:00:04.2]} 70. Kb3 {[%clk 0:00:21.8]} 70... Rb2+ {[%clk 0:00:03.5]} 71.
Kc3 {[%clk 0:00:21.9]} 71... Rc2+ {[%clk 0:00:04]} 72. Kb3 {[%clk 0:00:20.9]}
72... Rb2+ {[%clk 0:00:03.9]} 1/2-1/2

[Event "Late-Titled-Tuesday-Blitz-June-25-2024"]
[Site "Chess.com"]
[Date "2024.06.25"]
[Round "2"]
[White "Zhigalko_Sergei"]
[Black "GiorgianBarbosa"]
[Result "1-0"]
[WhiteElo "2975"]
[BlackElo "2606"]
[TimeControl "180+1"]
[EndTime "14:18:20 PDT"]
[Termination "Zhigalko_Sergei won by resignation"]

1. e4 {[%clk 0:03:00.9]} 1... c5 {[%clk 0:02:59.9]} 2. Nf3 {[%clk 0:02:58.4]}
2... g6 {[%clk 0:02:59.9]} 3. c3 {[%clk 0:02:58.4]} 3... Bg7 {[%clk 0:02:59.7]}
4. d4 {[%clk 0:02:58.3]} 4... cxd4 {[%clk 0:03:00.6]} 5. cxd4 {[%clk 0:02:59.2]}
5... d5 {[%clk 0:03:01.2]} 6. e5 {[%clk 0:02:58.8]} 6... Bg4 {[%clk 0:03:01.4]}
7. Bb5+ {[%clk 0:02:52.9]} 7... Nd7 {[%clk 0:03:01.4]} 8. Nbd2 {[%clk
0:02:52.1]} 8... e6 {[%clk 0:03:01.3]} 9. O-O {[%clk 0:02:51.5]} 9... Ne7 {[%clk
0:03:01.3]} 10. h3 {[%clk 0:02:51.7]} 10... Bxf3 {[%clk 0:03:01.6]} 11. Nxf3
{[%clk 0:02:52.6]} 11... O-O {[%clk 0:03:02.5]} 12. Bf4 {[%clk 0:02:46]} 12...
a6 {[%clk 0:02:55.5]} 13. Bxd7 {[%clk 0:02:33.7]} 13... Qxd7 {[%clk 0:02:55.4]}
14. Qd2 {[%clk 0:02:34.4]} 14... Rfc8 {[%clk 0:02:50.8]} 15. Bh6 {[%clk
0:02:33.6]} 15... Bxh6 {[%clk 0:02:34.5]} 16. Qxh6 {[%clk 0:02:32.4]} 16... Nf5
{[%clk 0:02:35]} 17. Qf4 {[%clk 0:02:16.9]} 17... Qd8 {[%clk 0:02:26.9]} 18.
Rac1 {[%clk 0:01:47.5]} 18... h5 {[%clk 0:02:05.7]} 19. g4 {[%clk 0:01:38.5]}
19... hxg4 {[%clk 0:02:05.2]} 20. hxg4 {[%clk 0:01:39.4]} 20... Nh4 {[%clk
0:02:04.9]} 21. Nh2 {[%clk 0:01:00.6]} 21... g5 {[%clk 0:01:48.2]} 22. Qe3
{[%clk 0:00:56.4]} 22... Kg7 {[%clk 0:01:32.6]} 23. f4 {[%clk 0:00:45]} 23...
Rxc1 {[%clk 0:01:23.8]} 24. Rxc1 {[%clk 0:00:45.3]} 24... gxf4 {[%clk
0:01:15.3]} 25. Qxf4 {[%clk 0:00:44.4]} 25... Ng6 {[%clk 0:01:15.2]} 26. Qf2
{[%clk 0:00:27.7]} 26... Rc8 {[%clk 0:01:01.1]} 27. Qf6+ {[%clk 0:00:20.6]}
27... Kg8 {[%clk 0:00:51.5]} 28. Qxd8+ {[%clk 0:00:18.7]} 28... Rxd8 {[%clk
0:00:51.8]} 29. Rc7 {[%clk 0:00:19.6]} 29... b5 {[%clk 0:00:41.8]} 30. g5 {[%clk
0:00:18.2]} 30... Nf4 {[%clk 0:00:38.4]} 31. Kf1 {[%clk 0:00:14.2]} 31... Nh3
{[%clk 0:00:32.7]} 32. g6 {[%clk 0:00:09.9]} 32... Rf8 {[%clk 0:00:29.3]} 33.
Ng4 {[%clk 0:00:10.2]} 33... Ng5 {[%clk 0:00:22.3]} 34. Ke2 {[%clk 0:00:05.9]}
34... Kg7 {[%clk 0:00:16.9]} 35. gxf7 {[%clk 0:00:05.9]} 35... Rxf7 {[%clk
0:00:16.3]} 36. Rc6 {[%clk 0:00:03.5]} 36... a5 {[%clk 0:00:13.9]} 37. Nf6
{[%clk 0:00:02.9]} 37... Kg6 {[%clk 0:00:08.6]} 38. Ke3 {[%clk 0:00:02.5]} 38...
Kf5 {[%clk 0:00:08.7]} 39. Rc5 {[%clk 0:00:02.2]} 39... Rb7 {[%clk 0:00:06.1]}
40. Ne8 {[%clk 0:00:02.7]} 40... Ne4 {[%clk 0:00:06.2]} 41. Nd6+ {[%clk
0:00:02.5]} 41... Nxd6 {[%clk 0:00:06.3]} 42. exd6 {[%clk 0:00:03.4]} 42... Rh7
{[%clk 0:00:05.4]} 43. Rxb5 {[%clk 0:00:03.2]} 43... Rh3+ {[%clk 0:00:04]} 44.
Kd2 {[%clk 0:00:03.3]} 44... Rh7 {[%clk 0:00:03]} 45. Rxa5 {[%clk 0:00:03]}
45... Rd7 {[%clk 0:00:03.9]} 46. Kc3 {[%clk 0:00:02.6]} 46... Rxd6 {[%clk
0:00:03.1]} 47. b4 {[%clk 0:00:03.1]} 47... Rc6+ {[%clk 0:00:03.5]} 48. Kb3
{[%clk 0:00:02.5]} 48... Rc4 {[%clk 0:00:03.7]} 49. b5 {[%clk 0:00:02.6]} 49...
Rxd4 {[%clk 0:00:03.6]} 50. b6 {[%clk 0:00:03.1]} 50... Rd1 {[%clk 0:00:03.8]}
51. Rb5 {[%clk 0:00:03.5]} 51... Rb1+ {[%clk 0:00:03.3]} 52. Ka4 {[%clk
0:00:03.9]} 52... Ra1 {[%clk 0:00:03.2]} 53. b7 {[%clk 0:00:04.2]} 53... Rxa2+
{[%clk 0:00:02.9]} 54. Kb3 {[%clk 0:00:04.7]} 54... Ra1 {[%clk 0:00:02.2]} 55.
b8=Q {[%clk 0:00:05]} 55... Rb1+ {[%clk 0:00:02.7]} 56. Kc2 {[%clk 0:00:05.5]}
56... Rxb5 {[%clk 0:00:03.6]} 57. Qxb5 {[%clk 0:00:05.5]} 57... e5 {[%clk
0:00:04.1]} 58. Qxd5 {[%clk 0:00:05.3]} 58... Kf4 {[%clk 0:00:04.3]} 59. Kd3
{[%clk 0:00:06.2]} 59... e4+ {[%clk 0:00:05.2]} 60. Qxe4+ {[%clk 0:00:06.8]}
60... Kg5 {[%clk 0:00:05.2]} 61. Qf3 {[%clk 0:00:06.4]} 1-0

[Event "Late-Titled-Tuesday-Blitz-June-25-2024"]
[Site "Chess.com"]
[Date "2024.06.25"]
[Round "2"]
[White "varunkrishnanchess"]
[Black "SpeedofLight0"]
[Result "0-1"]
[WhiteElo "2647"]
[BlackElo "3150"]
[TimeControl "180+1"]
[EndTime "14:18:21 PDT"]
[Termination "SpeedofLight0 won by checkmate"]

1. d4 {[%clk 0:03:00.9]} 1... Nf6 {[%clk 0:02:59.1]} 2. c4 {[%clk 0:03:00.6]}
2... e6 {[%clk 0:02:59.2]} 3. Nf3 {[%clk 0:02:57.2]} 3... d5 {[%clk 0:02:59.7]}
4. cxd5 {[%clk 0:02:55.5]} 4... exd5 {[%clk 0:03:00.6]} 5. Nc3 {[%clk
0:02:55.7]} 5... c6 {[%clk 0:02:55.4]} 6. Bg5 {[%clk 0:02:55.3]} 6... h6 {[%clk
0:02:51.2]} 7. Bh4 {[%clk 0:02:54.5]} 7... Be7 {[%clk 0:02:50.6]} 8. e3 {[%clk
0:02:54.4]} 8... Bf5 {[%clk 0:02:49.2]} 9. Bd3 {[%clk 0:02:48]} 9... Bxd3 {[%clk
0:02:48.9]} 10. Qxd3 {[%clk 0:02:47.5]} 10... Nbd7 {[%clk 0:02:49.6]} 11. O-O
{[%clk 0:02:47.1]} 11... O-O {[%clk 0:02:50.3]} 12. Rab1 {[%clk 0:02:47]} 12...
a5 {[%clk 0:02:49.2]} 13. b3 {[%clk 0:02:43.6]} 13... Re8 {[%clk 0:02:48.5]} 14.
Ne5 {[%clk 0:02:37.2]} 14... Nxe5 {[%clk 0:02:38.4]} 15. dxe5 {[%clk 0:02:38.1]}
15... Nd7 {[%clk 0:02:39]} 16. Bxe7 {[%clk 0:02:34.9]} 16... Qxe7 {[%clk
0:02:39.9]} 17. f4 {[%clk 0:02:34]} 17... f6 {[%clk 0:02:40.2]} 18. e4 {[%clk
0:01:59.4]} 18... Nc5 {[%clk 0:02:24.1]} 19. Qf3 {[%clk 0:01:55.2]} 19... dxe4
{[%clk 0:02:07]} 20. Nxe4 {[%clk 0:01:52]} 20... Nxe4 {[%clk 0:02:02.9]} 21.
Qxe4 {[%clk 0:01:52.9]} 21... fxe5 {[%clk 0:02:03.4]} 22. f5 {[%clk 0:01:51]}
22... Qc5+ {[%clk 0:01:43.2]} 23. Kh1 {[%clk 0:01:50.2]} 23... Qd4 {[%clk
0:01:43.4]} 24. Qe2 {[%clk 0:01:48.3]} 24... e4 {[%clk 0:01:18.7]} 25. f6 {[%clk
0:01:22.8]} 25... Re6 {[%clk 0:01:18.3]} 26. Rbd1 {[%clk 0:01:18.3]} 26... Qe5
{[%clk 0:01:18.3]} 27. f7+ {[%clk 0:00:46.4]} 27... Kf8 {[%clk 0:01:18.1]} 28.
Qe3 {[%clk 0:00:42.3]} 28... Re7 {[%clk 0:01:05.1]} 29. Qb6 {[%clk 0:00:38.6]}
29... Rc7 {[%clk 0:00:36.6]} 30. Rde1 {[%clk 0:00:17.6]} 30... Rac8 {[%clk
0:00:31.5]} 31. h3 {[%clk 0:00:06.6]} 31... Re7 {[%clk 0:00:21.9]} 32. Re3
{[%clk 0:00:04.6]} 32... Rcc7 {[%clk 0:00:20.6]} 33. Rfe1 {[%clk 0:00:04]} 33...
Qd5 {[%clk 0:00:14.4]} 34. Qa7 {[%clk 0:00:03.1]} 34... Kxf7 {[%clk 0:00:13.8]}
35. R3e2 {[%clk 0:00:02.4]} 35... Kg8 {[%clk 0:00:13.9]} 36. Qb8+ {[%clk
0:00:02.2]} 36... Kh7 {[%clk 0:00:14.5]} 37. Qf8 {[%clk 0:00:02.3]} 37... Rf7
{[%clk 0:00:14.5]} 38. Qa3 {[%clk 0:00:02.4]} 38... Rce7 {[%clk 0:00:14.9]} 39.
Qb2 {[%clk 0:00:02.4]} 39... Qd6 {[%clk 0:00:11.3]} 40. Qc2 {[%clk 0:00:02.4]}
40... Qg6 {[%clk 0:00:11.2]} 41. Rxe4 {[%clk 0:00:02.1]} 41... Rxe4 {[%clk
0:00:11]} 42. Qxe4 {[%clk 0:00:01.9]} 42... Rf1+ {[%clk 0:00:09.8]} 43. Kh2
{[%clk 0:00:02.4]} 43... Qxe4 {[%clk 0:00:09.3]} 44. Rxe4 {[%clk 0:00:03.3]}
44... Rf2 {[%clk 0:00:09.8]} 45. Ra4 {[%clk 0:00:03.3]} 45... b6 {[%clk
0:00:10.1]} 46. b4 {[%clk 0:00:03.8]} 46... axb4 {[%clk 0:00:10.3]} 47. Rxb4
{[%clk 0:00:04.4]} 47... b5 {[%clk 0:00:08.2]} 48. a4 {[%clk 0:00:04.5]} 48...
Rf5 {[%clk 0:00:07]} 49. axb5 {[%clk 0:00:04.5]} 49... Rxb5 {[%clk 0:00:07.6]}
50. Rc4 {[%clk 0:00:04.8]} 50... c5 {[%clk 0:00:07.7]} 51. h4 {[%clk 0:00:05.3]}
51... Kg6 {[%clk 0:00:07.7]} 52. Kh3 {[%clk 0:00:05.8]} 52... Kf5 {[%clk
0:00:08.2]} 53. g3 {[%clk 0:00:06.1]} 53... Ke5 {[%clk 0:00:08.6]} 54. Rc1
{[%clk 0:00:05.4]} 54... Kd5 {[%clk 0:00:08.4]} 55. Kg4 {[%clk 0:00:05.9]} 55...
c4 {[%clk 0:00:08.6]} 56. Kf5 {[%clk 0:00:06.4]} 56... Kd4+ {[%clk 0:00:08.4]}
57. Kg6 {[%clk 0:00:06.9]} 57... Rb7 {[%clk 0:00:09.2]} 58. Rd1+ {[%clk
0:00:05.7]} 58... Ke3 {[%clk 0:00:08.8]} 59. Rc1 {[%clk 0:00:05.9]} 59... Kd3
{[%clk 0:00:09]} 60. g4 {[%clk 0:00:04.7]} 60... c3 {[%clk 0:00:09.3]} 61. g5
{[%clk 0:00:04.7]} 61... hxg5 {[%clk 0:00:09.8]} 62. hxg5 {[%clk 0:00:04.7]}
62... Kd2 {[%clk 0:00:10.4]} 63. Rh1 {[%clk 0:00:05]} 63... c2 {[%clk 0:00:11]}
64. Rh2+ {[%clk 0:00:05.5]} 64... Kc3 {[%clk 0:00:11.5]} 65. Rh1 {[%clk
0:00:05.9]} 65... Kb2 {[%clk 0:00:12]} 66. Rh2 {[%clk 0:00:06.4]} 66... Kb1
{[%clk 0:00:12.4]} 67. Rh1+ {[%clk 0:00:01.9]} 67... c1=Q {[%clk 0:00:12.9]} 68.
Rxc1+ {[%clk 0:00:02.4]} 68... Kxc1 {[%clk 0:00:13.8]} 69. Kh7 {[%clk
0:00:02.4]} 69... Kd2 {[%clk 0:00:14.4]} 70. g6 {[%clk 0:00:03]} 70... Ke3
{[%clk 0:00:15.1]} 71. Kg8 {[%clk 0:00:03.5]} 71... Kf4 {[%clk 0:00:15.8]} 72.
Kh7 {[%clk 0:00:04]} 72... Kg5 {[%clk 0:00:16.5]} 73. Kg8 {[%clk 0:00:04.6]}
73... Kf6 {[%clk 0:00:16.3]} 74. Kf8 {[%clk 0:00:05.5]} 74... Rb8# {[%clk
0:00:16.3]} 0-1